bitfinex/quotes_ETHUSD_20251215
["timestamp","ask_amount","ask_price","bid_price","bid_amount"]
[1765816982264,0.05001751,2973.0,2972.5,0.5794]
[1765816982384,0.05001751,2973.1,2972.6,0.4984]
[1765816982711,0.05001751,2973.4,2972.9,6.72743784]
[1765816983018,0.05001751,2973.4,2972.9,6.72739939]
[1765816983224,0.05001751,2973.4,2973.0,0.4984]
[1765816983399,0.05001751,2973.2,2972.5,0.081]
[1765816983586,0.05001751,2973.2,2972.9,7.22578132]
[1765816983786,0.4551,2974.0,2972.6,0.4984]
[1765816984088,0.563,2973.9,2972.8,3.36379366]
[1765816984309,0.563,2973.9,2972.5,0.081]
[1765816984511,0.4551,2973.8,2971.8,0.1692]
[1765816984918,0.4551,2973.8,2971.9,3.36485076]
[1765816984919,10.08912054,2973.5,2971.9,3.36485076]
[1765816985214,0.05001751,2972.6,2971.9,3.36485076]
[1765816985419,0.563,2972.5,2971.9,6.72970152]
[1765816985714,0.563,2972.4,2971.9,6.72970152]
[1765816985916,0.05001751,2972.8,2972.5,0.081]
[1765816986217,0.05001751,2973.0,2972.5,0.081]
[1765816986422,3.36336266,2974.1,2972.9,7.16724972]
[1765816986596,0.562,2973.9,2973.0,0.71672497]
[1765816986786,0.562,2973.9,2973.0,1.21512497]
[1765816987109,0.562,2973.9,2972.5,0.66147529]
[1765816987110,6.72540184,2973.8,2972.6,3.3640584]
[1765816987283,10.08810276,2973.8,2971.8,0.1692]
[1765816987491,0.05001751,2973.0,2971.9,3.36475967]
[1765816987690,0.05001751,2972.3,2971.8,3.53410489]
[1765816988093,0.05001751,2972.3,2971.9,0.4984]
[1765816988301,0.563,2972.4,2972.0,0.40325049]
[1765816988502,0.563,2972.4,2971.9,0.4984]
[1765816989028,0.563,2972.4,2971.8,6.89906888]
[1765816989196,0.562,2972.3,2972.0,0.4984]
[1765816989403,0.05001751,2972.5,2972.0,0.4984]
[1765816989404,0.562,2972.2,2972.0,0.4984]
[1765816989602,0.05001751,2973.0,2972.4,0.081]
[1765816989919,0.05001751,2973.0,2972.4,0.5794]
[1765816990419,0.05001751,2973.2,2972.4,0.5794]
[1765816990420,0.562,2973.2,2972.4,0.5794]
[1765816990789,0.562,2973.3,2972.4,0.5794]
[1765816990997,0.562,2973.3,2972.5,6.72834314]
[1765816991192,0.05001751,2973.0,2972.5,3.36417157]
[1765816991601,0.05001751,2973.0,2971.8,0.1692]
[1765816991602,0.05001751,2972.8,2971.8,0.1692]
[1765816991804,0.05001751,2972.8,2972.1,3.36458383]
[1765816992029,0.05001751,2972.8,2971.8,0.1692]
[1765816992322,0.562,2972.7,2971.8,0.52263605]
[1765816992495,0.05001751,2972.6,2972.4,3.36424821]
[1765816992698,0.562,2972.6,2972.4,3.36424821]
[1765816992890,0.05001751,2973.2,2972.4,7.22693296]
[1765816993192,0.05001751,2973.0,2972.4,3.36424821]
[1765816993393,0.05001751,2972.7,2972.3,3.36434398]
[1765816993622,0.562,2972.6,2972.4,6.7285619]
[1765816993835,0.61201751,2972.7,2972.4,7.90791809]
[1765816994125,0.50511751,2972.6,2971.8,0.1692]
[1765816994296,0.05001751,2972.2,2971.5,3.36526133]
[1765816994496,0.05001751,2972.2,2971.5,6.73056504]
[1765816994920,0.562,2972.1,2971.5,6.73056504]
[1765816995102,0.05001751,2972.2,2971.4,0.002]
[1765816995321,1.2042,2972.1,2971.4,0.002]
[1765816995625,0.6432,2972.1,2971.4,0.002]
[1765816995816,0.4551,2972.0,2971.4,0.002]
[1765816996015,6.77903977,2972.2,2971.4,0.002]
[1765816996325,0.562,2972.1,2971.4,0.002]
[1765816996499,0.05001751,2972.2,2971.4,0.002]
[1765816996500,0.562,2972.0,2971.4,0.03565416]
[1765816996702,0.05001751,2972.2,2971.4,0.407504]
[1765816996901,0.562,2972.4,2971.7,0.98597929]
[1765816997101,0.05101751,2973.8,2973.0,6.72721156]
[1765816997294,0.562,2973.4,2973.0,6.72721156]
[1765816997495,0.05101751,2973.8,2973.0,6.72721156]
[1765816997694,0.05101751,2973.8,2973.0,3.36360578]
[1765816997695,0.562,2973.7,2973.0,3.36360578]
[1765816997928,0.05001751,2973.1,2972.2,0.1141]
[1765816998225,0.05001751,2972.9,2972.3,0.1141]
[1765816998426,0.05001751,2972.9,2971.9,10.09445325]
[1765816998630,0.05001751,2972.9,2972.0,1.00944533]
[1765816999011,0.561,2972.8,2972.1,0.4984]
[1765816999211,0.5602,2972.8,2972.2,10.09353339]
[1765816999528,0.5602,2972.8,2972.7,0.1141]
[1765816999729,0.05001751,2973.5,2972.7,0.1141]
[1765816999934,0.561,2973.4,2972.8,0.4984]
[1765817000528,0.001,2973.8,2972.8,0.4984]
[1765817000529,0.562,2973.8,2972.8,0.4984]
[1765817000731,0.05001751,2973.6,2972.9,0.78214711]
[1765817000894,0.05001751,2973.6,2972.8,0.4984]
[1765817001099,0.05001751,2973.6,2972.4,0.1141]
[1765817001100,0.05001751,2973.2,2972.4,0.1141]
[1765817001300,6.7269853,2973.1,2972.0,0.002]
[1765817001630,1.23870028,2973.0,2972.0,0.002]
[1765817001797,0.05001751,2972.2,2972.0,3.36670763]
[1765817001998,0.561,2972.1,2972.0,0.002]
[1765817002298,0.05001751,2972.2,2972.1,0.4984]
[1765817002526,0.05001751,2973.0,2972.1,0.4984]
[1765817002828,0.05001751,2972.8,2972.2,1.05946126]
[1765817003018,0.05001751,2972.6,2972.2,1.05946126]
[1765817003219,3.41411002,2972.6,2972.0,0.002]
[1765817003516,0.05001751,2972.6,2972.0,0.002]
[1765817003832,0.05001751,2972.3,2972.0,0.002]
[1765817004327,0.561,2972.2,2972.0,0.002]
[1765817004529,0.05001751,2972.1,2972.0,0.002]
[1765817004900,0.50511751,2972.1,2972.0,0.002]
[1765817005095,0.561,2972.2,2972.0,0.002]
[1765817005334,0.05,2973.1,2972.1,13.95689732]
[1765817005335,11.176027,2973.1,2972.1,13.95689732]
[1765817005522,0.1881,2973.5,2972.2,0.03364511]
[1765817005523,21.394796,2973.5,2972.2,0.03364511]
[1765817005698,0.05101751,2973.8,2972.3,0.0335]
[1765817005904,0.05101751,2973.8,2972.4,0.03364284]
[1765817006209,0.05101751,2973.8,2972.6,7.18050745]
[1765817006413,0.05101751,2973.8,2972.8,0.405504]
[1765817006624,0.05101751,2973.8,2973.3,0.58047529]
[1765817006825,1.751e-05,2973.6,2973.4,0.77609827]
[1765817006998,0.561,2973.5,2972.4,0.0335]
[1765817007202,0.561,2973.5,2972.5,10.09251471]
[1765817007405,1.751e-05,2973.6,2972.8,0.405504]
[1765817007603,1.751e-05,2973.6,2972.8,7.18050745]
[1765817007826,1.751e-05,2973.6,2972.9,0.75155075]
[1765817008109,1.751e-05,2973.6,2972.9,0.0335]
[1765817008432,1.751e-05,2973.6,2973.0,0.0335]
[1765817008633,0.05101751,2973.8,2973.0,0.0335]
[1765817009417,0.001,2973.5,2973.1,6.7269853]
[1765817009925,0.001,2973.5,2973.2,0.0335]
[1765817010107,0.001,2973.5,2973.3,0.67604853]
[1765817010507,0.001,2973.5,2973.4,0.0335]
[1765817011066,0.001,2973.8,2973.4,0.0335]
[1765817011346,0.001,2974.1,2973.6,3.94340238]
[1765817011646,0.05001751,2974.6,2973.7,0.58047529]
[1765817011848,0.05001751,2974.6,2973.8,8.58372582]
[1765817012053,0.05001751,2974.6,2973.8,1.43671837]
[1765817012347,0.001,2974.7,2973.9,7.21400745]
[1765817012552,0.001,2974.7,2974.0,0.405504]
[1765817012715,0.001,2974.7,2974.1,0.85145115]
[1765817013110,0.56,2975.7,2974.4,7.18050745]
[1765817013430,3.92056606,2975.7,2974.5,3.36190956]
[1765817013666,0.05001751,2975.0,2974.5,6.72381912]
[1765817013868,0.05001751,2975.0,2973.8,1.40321837]
[1765817013869,0.05001751,2974.8,2973.8,1.40321837]
[1765817014203,0.05001751,2974.6,2973.7,3.36275958]
[1765817014384,0.05001751,2974.6,2974.2,3.36223605]
[1765817014590,0.05001751,2974.4,2973.7,0.0325]
[1765817015098,0.05001751,2974.4,2974.3,3.36213562]
[1765817015407,0.05001751,2974.4,2973.3,0.67604853]
[1765817015567,0.05001751,2974.0,2973.0,6.72721156]
[1765817015884,0.05001751,2974.0,2973.0,3.36360578]
[1765817016087,0.50221751,2974.0,2972.3,0.0325]
[1765817016297,0.50221751,2974.0,2972.9,3.36368877]
[1765817016496,0.56,2973.9,2972.4,3.36418464]
[1765817016795,0.05001751,2974.0,2972.9,6.7273437]
[1765817017086,0.05001751,2974.0,2973.0,0.58047529]
[1765817017413,0.05001751,2974.0,2973.1,10.09047795]
[1765817017548,0.05001751,2974.0,2973.1,6.7594853]
[1765817017879,0.05001751,2974.0,2973.2,0.0325]
[1765817018066,0.05001751,2974.0,2973.3,0.67919853]
[1765817018585,3.36191897,2974.5,2973.3,0.67919853]
[1765817018586,0.05001751,2974.8,2973.7,0.405504]
[1765817018753,0.44207412,2975.6,2973.7,0.405504]
[1765817018754,0.05001751,2975.6,2974.1,7.18050745]
[1765817019182,0.05001751,2975.6,2973.8,0.5925]
[1765817019183,0.001,2975.2,2974.3,0.405504]
[1765817019479,0.001,2975.2,2974.4,10.08606777]
[1765817019683,0.001,2975.2,2974.5,1.04915718]
[1765817019880,0.001,2975.2,2974.5,1.08165718]
[1765817020052,0.001,2975.2,2974.6,0.0325]
[1765817020488,0.61101751,2976.0,2974.6,0.0325]
[1765817020489,0.001,2976.0,2975.1,7.18050745]
[1765817020685,0.001,2976.0,2975.7,0.58047529]
[1765817020895,0.001,2976.0,2975.2,0.56]
[1765817021054,0.001,2976.0,2975.3,0.0315]
[1765817021454,0.001,2976.0,2975.5,0.58047529]
[1765817021883,0.001,2976.0,2975.7,0.58047529]
[1765817022182,0.001,2976.0,2975.8,0.81979867]
[1765817022381,0.05101751,2976.4,2975.8,0.81979867]
[1765817022382,0.001,2976.4,2975.9,0.405504]
[1765817022587,0.0002,2976.4,2976.0,0.0315]
[1765817022993,0.0002,2976.4,2975.8,0.81979867]
[1765817023156,0.05001751,2975.9,2975.4,3.36089265]
[1765817023360,0.05001751,2975.5,2974.7,3.36168353]
[1765817023585,0.05001751,2975.0,2974.7,7.06268541]
[1765817023786,0.05001751,2975.0,2974.7,7.09418541]
[1765817023984,0.05001751,2975.3,2974.8,0.0315]
[1765817024291,0.05001751,2975.3,2974.8,0.61197529]
[1765817024807,0.05001751,2975.3,2974.9,0.0315]
[1765817025387,0.05001751,2975.3,2975.0,6.72268906]
[1765817025577,0.05001751,2975.5,2975.1,0.67541891]
[1765817025880,0.05001751,2975.5,2975.2,0.0315]
[1765817026083,0.05001751,2975.3,2975.2,0.0315]
[1765817026288,0.05001751,2975.3,2975.0,6.72268906]
[1765817026661,0.05001751,2975.1,2975.0,3.36134453]
[1765817026866,0.05001751,2975.1,2975.0,4.03363063]
[1765817027255,0.05001751,2975.1,2974.6,3.36171237]
[1765817027489,0.05001751,2975.1,2974.1,0.0315]
[1765817027789,0.05001751,2974.4,2974.1,0.0315]
[1765817028156,0.05001751,2974.4,2973.8,3.36267686]
[1765817028378,0.05001751,2974.4,2973.9,0.0315]
[1765817028722,0.001,2975.3,2974.4,0.58047529]
[1765817028890,0.001,2975.3,2975.0,0.58047529]
[1765817029059,0.0002,2976.4,2975.2,0.405504]
[1765817029384,0.50221751,2977.7,2976.1,0.98597929]
[1765817029385,0.05001751,2977.7,2976.1,0.98597929]
[1765817029587,0.6403,2978.3,2976.5,0.58047529]
[1765817029588,0.1881,2978.3,2976.5,0.58047529]
[1765817029786,0.495,2978.5,2976.6,1.33335119]
[1765817029787,0.05001751,2978.2,2976.6,1.33335119]
[1765817030384,0.05001751,2978.2,2976.6,0.77435119]
[1765817030892,3.40781465,2978.2,2976.6,0.77435119]
[1765817031098,0.05001751,2978.2,2976.6,0.77435119]
[1765817031395,3.35830302,2977.7,2976.0,3.36021505]
[1765817031768,0.05001751,2977.8,2976.0,0.58047529]
[1765817031769,7.32542036,2977.8,2976.0,0.58047529]
[1765817032309,0.05001751,2977.5,2976.0,0.58047529]
[1765817032511,0.05001751,2977.3,2976.0,0.58047529]
[1765817032724,0.05001751,2977.1,2975.9,6.72065592]
[1765817032906,0.05001751,2977.1,2975.9,10.75304947]
[1765817033221,1.06121751,2978.0,2976.0,0.559]
[1765817033377,3.35808145,2977.9,2976.1,10.08030642]
[1765817033579,6.71625805,2977.9,2976.2,0.58047529]
[1765817033806,0.05001751,2977.5,2976.2,0.58047529]
[1765817034120,0.05001751,2977.5,2976.3,1.06607817]
[1765817034614,0.4522,2978.8,2976.8,5.96471963]
[1765817034907,3.40726913,2978.7,2976.9,1.13947529]
[1765817035209,3.40720249,2978.7,2976.9,1.13947529]
[1765817035412,3.35758295,2978.4,2976.9,1.13947529]
[1765817035578,0.05001751,2978.7,2977.1,0.58047529]
[1765817035909,0.05001751,2978.5,2977.2,1.40168206]
[1765817036098,0.001,2977.5,2977.2,1.40168206]
[1765817036297,0.001,2977.5,2977.0,10.07725896]
[1765817036298,0.001,2977.5,2977.0,3.35908632]
[1765817036483,0.001,2977.5,2976.9,6.71835751]
[1765817036917,0.001,2977.5,2976.9,10.07755667]
[1765817037291,0.001,2977.5,2976.9,13.43675583]
[1765817037478,0.001,2977.5,2976.9,3.35915835]
[1765817037679,0.001,2977.5,2976.8,0.58047529]
[1765817037873,0.001,2977.5,2976.9,1.12177499]
[1765817038999,0.001,2977.5,2977.0,0.559]
[1765817039204,0.001,2977.5,2976.9,1.12177499]
[1765817039618,0.001,2977.5,2977.0,6.71817264]
[1765817040486,0.001,2977.5,2977.0,10.07725896]
[1765817040824,0.001,2977.5,2977.1,1.73396842]
[1765817041023,0.001,2977.5,2977.1,1.1199034]
[1765817041685,0.001,2977.5,2977.2,6.71772134]
[1765817041880,0.001,2978.7,2977.4,5.96471963]
[1765817042180,0.001,2978.7,2977.5,1.01956451]
[1765817042380,0.05001751,2978.5,2977.8,0.98597929]
[1765817042620,0.001,2978.7,2978.0,0.405504]
[1765817042785,0.05001751,2980.2,2978.2,0.405504]
[1765817042786,0.05001751,2979.1,2978.2,0.405504]
[1765817042991,0.05001751,2979.5,2978.4,0.405504]
[1765817043188,0.05001751,2979.5,2978.3,0.5925762]
[1765817043189,0.05001751,2979.5,2978.6,0.405504]
[1765817043390,0.05001751,2979.1,2978.5,0.03357394]
[1765817043585,0.05001751,2980.2,2979.1,0.98597929]
[1765817043810,0.1937,2981.5,2979.6,0.405504]
[1765817044111,0.05368407,2980.8,2980.5,0.58047529]
[1765817044313,0.001,2981.7,2980.6,0.43905429]
[1765817044511,0.001,2981.7,2981.2,0.58047529]
[1765817044812,0.001,2981.7,2981.0,0.559]
[1765817045013,0.05368407,2981.1,2980.0,0.58047529]
[1765817045213,0.05468407,2981.3,2980.2,0.405504]
[1765817045413,0.001,2981.3,2980.6,0.405504]
[1765817045716,0.0002,2981.3,2981.1,3.35446647]
[1765817046210,0.05368407,2980.5,2979.3,5.96471963]
[1765817046411,0.05368407,2980.5,2979.7,6.7120851]
[1765817046613,0.05368407,2980.5,2979.8,1.2516838]
[1765817047012,0.05368407,2980.5,2979.7,6.7120851]
[1765817047216,0.05368407,2979.8,2978.5,5.96471963]
[1765817047388,0.05368407,2979.8,2979.6,3.35613135]
[1765817047590,0.05368407,2979.8,2978.9,0.58047529]
[1765817047825,0.05368407,2979.8,2979.0,0.39375318]
[1765817048192,0.05368407,2979.6,2978.8,6.71411306]
[1765817048388,0.05368407,2979.6,2978.8,3.35705653]
[1765817048595,0.05368407,2979.6,2978.7,3.3571394]
[1765817048996,3.3554155,2980.3,2978.7,3.3571394]
[1765817048997,0.4649,2980.4,2978.7,6.71430863]
[1765817049222,3.81981663,2980.7,2978.8,0.58047529]
[1765817049516,0.05368407,2980.2,2978.8,0.58047529]
[1765817049682,0.05368407,2980.2,2979.0,0.58047529]
[1765817050085,0.05368407,2980.2,2978.9,13.42777532]
[1765817050086,0.05368407,2980.0,2979.1,1.40082506]
[1765817050282,0.05368407,2979.8,2978.9,3.35694383]
[1765817050487,0.05368407,2979.6,2978.9,6.71388766]
[1765817050683,0.05368407,2979.6,2978.9,16.03555112]
[1765817050884,0.05368407,2980.0,2979.0,2.1840304]
[1765817051096,3.91369153,2980.9,2979.4,5.96471963]
[1765817051294,0.05368407,2981.0,2979.5,0.58047529]
[1765817051503,0.05368407,2981.0,2979.6,0.559]
[1765817051705,0.05368407,2980.6,2979.7,6.7120851]
[1765817051905,6.70880643,2981.2,2979.7,6.7120851]
[1765817052115,7.17370643,2981.2,2979.7,3.35604255]
[1765817052312,0.4649,2981.1,2979.7,3.35604255]
[1765817052714,0.4649,2981.1,2979.7,10.06812765]
[1765817052911,1.10393589,2981.1,2979.8,1.00681276]
[1765817053310,6.70880643,2981.2,2979.8,1.00681276]
[1765817053731,6.70880643,2981.2,2979.9,6.7116346]
[1765817053924,0.4649,2981.1,2979.9,3.3558173]
[1765817054117,6.70880643,2981.2,2979.9,3.3558173]
[1765817054424,0.559,2981.1,2980.0,6.57875196]
[1765817054724,0.559,2981.1,2979.9,3.3558173]
[1765817055025,0.4649,2981.0,2979.8,6.71185079]
[1765817055228,0.4649,2981.0,2979.8,3.35592087]
[1765817055431,0.4649,2981.0,2979.5,0.002]
[1765817055432,0.05368407,2980.9,2979.5,0.002]
[1765817055620,0.05368407,2980.5,2979.5,0.002]
[1765817055938,10.06576296,2980.4,2979.5,0.002]
[1765817056142,0.1937,2979.6,2979.5,0.002]
[1765817056318,0.7517,2979.6,2979.5,0.002]
[1765817056513,0.558,2979.6,2979.5,0.002]
[1765817056742,1.0229,2979.6,2979.5,0.002]
[1765817057031,0.558,2980.0,2979.5,0.002]
[1765817057414,0.6586,2980.2,2979.5,0.002]
[1765817057415,1.0229,2979.9,2979.5,0.002]
[1765817057614,0.558,2979.9,2979.5,0.002]
[1765817058564,0.05368407,2980.6,2979.5,0.002]
[1765817058706,0.558,2980.7,2979.5,0.002]
[1765817059032,0.0002,2981.3,2980.3,5.96471963]
[1765817059232,0.0002,2981.3,2980.4,1.17694725]
[1765817059412,0.0002,2981.3,2980.8,5.96471963]
[1765817059616,0.0002,2981.3,2980.9,0.58047529]
[1765817059818,0.0002,2981.3,2981.0,6.709158]
[1765817060735,0.0002,2981.3,2978.6,3.35716972]
[1765817061033,0.0002,2981.3,2980.7,3.35482886]
[1765817061034,0.5582,2981.3,2980.7,3.35482886]
[1765817061341,0.0002,2981.3,2980.9,10.06404104]
[1765817061707,0.0002,2981.3,2980.9,3.35465798]
[1765817061937,0.0002,2981.3,2980.8,6.70960814]
[1765817062137,0.0002,2981.3,2980.8,3.35480407]
[1765817062338,0.0002,2981.3,2980.7,3.35487566]
[1765817062634,0.5582,2981.3,2979.8,5.96471963]
[1765817062840,0.4649,2981.2,2979.5,0.002]
[1765817063026,0.4649,2981.2,2979.6,3.35607696]
[1765817063206,0.4649,2981.2,2979.5,0.002]
[1765817063815,10.62139941,2981.1,2979.5,0.002]
[1765817064405,0.4649,2981.0,2979.5,0.002]
[1765817064648,1.10862994,2980.9,2979.5,0.002]
[1765817064848,1.10862994,2980.9,2979.5,0.58247529]
[1765817064849,0.558,2980.8,2979.5,0.58247529]
[1765817065056,0.558,2980.7,2979.5,0.002]
[1765817065416,0.558,2980.6,2979.5,0.002]
[1765817065760,3.35491663,2980.7,2980.6,0.002]
[1765817065925,0.41360095,2980.7,2980.6,0.002]
[1765817066439,0.97160095,2980.7,2980.6,0.002]
[1765817066941,1.43650095,2980.7,2980.6,0.002]
[1765817067341,1.43650095,2980.7,2979.5,0.002]
[1765817067542,0.05368407,2980.3,2979.5,0.002]
[1765817067917,0.05368407,2980.1,2979.5,0.002]
[1765817068112,0.44645883,2980.1,2979.5,0.002]
[1765817068512,0.558,2980.0,2979.5,0.002]
[1765817068828,0.35991688,2980.7,2979.5,0.002]
[1765817069028,0.05368407,2980.4,2979.5,0.002]
[1765817069632,0.05368407,2980.2,2979.5,0.002]
[1765817069948,0.05368407,2980.0,2979.5,0.002]
[1765817070156,0.558,2979.9,2979.5,0.002]
[1765817070926,0.05368407,2980.0,2979.5,0.002]
[1765817071378,0.05368407,2981.1,2979.5,0.002]
[1765817071379,0.4921,2981.2,2979.5,0.0043]
[1765817071540,0.557,2981.1,2979.5,0.0043]
[1765817071859,3.84645395,2981.2,2979.5,0.0043]
[1765817071860,3.84647754,2981.2,2979.6,0.03586155]
[1765817072026,0.05368407,2980.7,2979.5,6.71453566]
[1765817072226,0.558,2981.1,2979.6,0.0023]
[1765817072476,0.558,2981.0,2979.6,0.0023]
[1765817072754,0.05368407,2980.7,2979.6,0.0023]
[1765817072941,0.558,2980.6,2979.6,0.0023]
[1765817073434,0.05368407,2981.1,2979.6,5.96701963]
[1765817073627,0.05368407,2981.1,2979.5,17.45479272]
[1765817073628,0.05368407,2980.7,2979.5,7.38598923]
[1765817073838,0.558,2981.0,2979.6,0.0023]
[1765817074040,0.558,2981.0,2979.6,5.96701963]
[1765817074250,0.05368407,2981.1,2979.7,0.58277529]
[1765817074443,0.558,2980.9,2979.7,0.58277529]
[1765817074754,0.558,2980.9,2979.7,0.58047529]
[1765817074954,0.558,2980.9,2979.8,0.65681949]
[1765817075630,0.558,2980.9,2979.9,0.0023]
[1765817076155,0.558,2980.9,2979.9,6.7116346]
[1765817076357,0.61168407,2980.9,2979.9,6.7116346]
[1765817076835,0.61168407,2980.9,2979.9,10.0674519]
[1765817077037,0.61168407,2980.9,2979.9,11.20022657]
[1765817077525,0.05368407,2981.1,2980.0,0.58277529]
[1765817077931,0.05368407,2981.1,2980.2,0.58047529]
[1765817078230,0.05368407,2981.1,2980.1,10.06907627]
[1765817078429,0.05368407,2981.1,2980.2,0.58277529]
[1765817078663,0.05368407,2981.1,2980.3,1.40051437]
[1765817078845,0.05368407,2981.1,2980.3,1.40281437]
[1765817079047,0.05368407,2981.1,2980.3,1.40051437]
[1765817079565,0.05368407,2981.1,2980.4,0.03355254]
[1765817079566,3.40817358,2981.1,2980.4,0.03355254]
[1765817079860,0.1986,2980.5,2979.5,3.35818139]
[1765817080061,0.557,2980.4,2979.5,0.002]
[1765817080236,0.557,2980.4,2980.0,0.002]
[1765817080435,0.05368407,2980.2,2980.0,0.002]
[1765817080837,0.4535,2980.1,2980.0,0.002]
[1765817081159,0.4535,2980.1,2979.5,0.002]
[1765817081354,0.05368407,2980.2,2979.5,0.002]
[1765817081355,0.05368407,2979.8,2979.5,0.002]
[1765817081862,0.58047529,2981.0,2979.6,0.0043]
[1765817082041,0.61068407,2980.9,2979.7,7.57345817]
[1765817082240,0.61068407,2980.9,2979.8,0.58047529]
[1765817082241,0.557,2980.9,2979.8,0.58047529]
[1765817082443,0.557,2980.9,2979.8,0.0043]
[1765817082645,0.557,2980.9,2979.9,0.0043]
[1765817082844,3.91171224,2980.9,2979.9,0.0043]
[1765817083040,0.05368407,2980.6,2979.5,0.002]
[1765817083233,0.05368407,2980.4,2979.5,0.002]
[1765817083437,0.05368407,2980.2,2979.5,0.002]
[1765817083663,0.05368407,2979.8,2979.5,0.002]
[1765817085035,0.05368407,2979.8,2979.5,0.0063]
[1765817085743,0.05368407,2979.8,2979.5,0.002]
[1765817086278,0.05368407,2980.0,2979.5,0.0063]
[1765817086574,0.05368407,2980.0,2979.5,0.002]
[1765817086938,0.05368407,2979.8,2979.5,0.002]
[1765817087176,0.05368407,2979.6,2979.5,0.002]
[1765817087475,0.60968407,2979.6,2979.5,0.002]
[1765817087843,1.06318407,2979.6,2979.5,0.002]
[1765817088044,4.41933925,2979.6,2979.5,0.002]
[1765817088367,5.22210614,2979.6,2979.5,0.002]
[1765817089947,13.42552188,2979.4,2978.4,0.002]
[1765817090150,0.1986,2978.5,2978.4,0.002]
[1765817090394,0.556,2978.5,2978.4,0.002]
[1765817092251,0.5552,2978.5,2978.4,0.002]
[1765817092463,4.30920681,2978.5,2978.4,0.002]
[1765817092675,0.95181215,2978.5,2978.4,0.002]
[1765817092870,0.5552,2978.5,2978.4,0.002]
[1765817093273,4.36609466,2978.5,2978.4,0.002]
[1765817093980,4.36609466,2978.5,2978.3,0.002]
[1765817094154,0.4535,2978.4,2978.3,0.002]
[1765817094353,0.50718407,2978.4,2978.3,0.002]
[1765817094553,1.28490138,2978.4,2977.2,0.002]
[1765817094750,0.05368407,2977.9,2977.2,0.002]
[1765817095986,0.25228407,2977.9,2977.2,0.002]
[1765817096187,3.61046091,2977.9,2977.2,0.002]
[1765817096386,0.05368407,2977.4,2977.2,0.002]
[1765817096592,0.555,2977.3,2977.2,0.002]
[1765817096788,1.0085,2977.3,2977.2,0.002]
[1765817097370,1.0085,2977.3,2977.1,0.002]
[1765817097582,0.50718407,2977.2,2977.1,0.002]
[1765817098162,3.86604474,2977.2,2977.1,0.002]
[1765817098366,4.55687425,2977.2,2977.1,0.002]
[1765817099160,5.11187425,2977.2,2977.1,0.002]
[1765817099395,5.51737825,2977.2,2977.1,0.002]
[1765817099561,6.09785354,2977.2,2977.1,0.002]
[1765817100292,6.09785354,2977.2,2976.0,0.002]
[1765817100293,8.49621021,2977.2,2976.0,0.002]
[1765817100592,0.05368407,2976.4,2976.0,0.002]
[1765817100789,0.1986,2976.1,2974.8,0.002]
[1765817100995,0.405504,2976.0,2974.8,0.002]
[1765817101159,0.859004,2976.0,2974.8,0.002]
[1765817101359,0.1986,2974.9,2974.8,0.002]
[1765817101589,0.7536,2974.9,2974.8,0.002]
[1765817101796,1.2104,2974.9,2974.8,0.002]
[1765817102002,0.05368407,2975.1,2974.8,3.36357052]
[1765817102156,0.05368407,2975.1,2974.8,0.002]
[1765817102492,0.555,2975.0,2974.8,0.002]
[1765817102701,0.05368407,2975.5,2974.9,0.0123]
[1765817102869,0.05368407,2976.8,2974.9,0.0123]
[1765817102870,0.1904,2976.5,2974.9,0.0123]
[1765817103070,0.555,2975.9,2974.9,0.0123]
[1765817103567,0.555,2975.9,2974.8,0.002]
[1765817103764,0.05368407,2975.5,2974.8,0.002]
[1765817104272,0.555,2975.4,2974.8,0.002]
[1765817104596,0.05368407,2975.5,2974.8,0.0143]
[1765817104801,0.555,2975.4,2974.8,0.0143]
[1765817104957,0.555,2975.4,2974.8,0.002]
[1765817105403,0.05368407,2975.3,2974.8,0.002]
[1765817105698,0.05368407,2975.1,2974.8,0.002]
[1765817105896,0.51048407,2975.1,2974.8,0.002]
[1765817106388,3.8718175,2975.1,2974.8,0.002]
[1765817106591,0.05368407,2974.9,2974.8,0.002]
[1765817107263,0.60768407,2974.9,2974.8,0.002]
[1765817107674,1.06448407,2974.9,2974.8,0.002]
[1765817107911,0.05368407,2974.9,2974.8,0.002]
[1765817108208,0.554,2974.9,2974.8,0.002]
[1765817108511,0.05368407,2976.2,2974.8,0.0143]
[1765817108688,0.05368407,2976.2,2974.9,7.1554876]
[1765817108877,0.60868407,2976.0,2975.0,0.72927876]
[1765817109073,0.60868407,2976.0,2975.0,1.30975405]
[1765817109403,0.05368407,2976.2,2975.4,7.1554876]
[1765817109579,0.05368407,2976.0,2975.1,0.0123]
[1765817109786,0.05368407,2975.8,2975.1,0.0123]
[1765817110184,0.05368407,2975.8,2974.8,0.002]
[1765817110397,0.05368407,2975.6,2974.8,0.002]
[1765817110613,0.05368407,2975.2,2974.8,0.002]
[1765817111210,0.4568,2975.1,2974.8,0.002]
[1765817111506,0.05368407,2975.2,2974.8,0.002]
[1765817111695,0.555,2975.1,2974.8,0.002]
[1765817112306,0.05368407,2975.0,2974.8,0.002]
[1765817112509,3.41508305,2975.0,2974.8,0.002]
[1765817112696,0.89948831,2974.9,2974.8,0.002]
[1765817112902,0.44268831,2974.9,2974.8,0.002]
[1765817113210,0.05368407,2975.0,2974.8,0.002]
[1765817113780,0.1904,2975.5,2974.8,0.002]
[1765817114080,0.05368407,2975.0,2974.8,0.002]
[1765817114274,0.51048407,2975.4,2974.8,0.002]
[1765817114505,0.555,2975.3,2974.8,0.002]
[1765817114899,0.05368407,2974.9,2974.8,0.002]
[1765817115414,0.60868407,2974.9,2974.8,0.002]
[1765817115580,0.60788407,2974.9,2974.8,0.002]
[1765817115781,0.1904,2975.9,2974.8,0.0143]
[1765817116114,0.1904,2975.9,2975.0,0.58047529]
[1765817116115,0.555,2975.9,2975.0,0.58047529]
[1765817116316,0.001,2976.0,2975.4,7.1554876]
[1765817116501,0.001,2977.2,2976.2,0.58047529]
[1765817117317,0.001,2977.2,2976.3,0.0113]